bitfinex/quotes_ETHUSD_20250115
["timestamp","ask_amount","ask_price","bid_price","bid_amount"]
[1736927704144,2.92923174,3237.2,3237.0,0.176]
[1736927704348,2.90881041,3237.5,3237.0,0.176]
[1736927705004,2.90881041,3237.2,3237.0,0.176]
[1736927705201,0.02042133,3237.1,3237.0,0.176]
[1736927705549,3.08928,3237.0,3236.7,0.176]
[1736927705838,2.90881041,3236.8,3236.7,0.176]
[1736927706943,2.90881041,3236.8,3236.5,0.176]
[1736927707946,1.06302317,3237.2,3236.5,0.176]
[1736927707947,2.90881041,3237.1,3236.5,0.176]
[1736927708105,2.92923174,3237.1,3236.5,0.176]
[1736927709255,6.69726591,3237.1,3236.5,0.176]
[1736927709411,6.67684458,3237.1,3236.5,0.176]
[1736927709612,0.02042133,3237.0,3236.5,0.176]
[1736927711350,2.90881041,3237.1,3236.5,0.176]
[1736927711538,2.90881041,3237.1,3236.5,0.20689495]
[1736927711746,2.90881041,3237.1,3236.6,0.8048]
[1736927712138,2.92923174,3237.1,3236.6,0.8048]
[1736927713321,3.67891041,3237.5,3236.6,0.83569439]
[1736927713521,0.02042133,3237.4,3236.7,0.41013544]
[1736927714167,3.10931133,3237.4,3236.6,0.8048]
[1736927714467,3.67891041,3237.5,3236.7,0.0308923]
[1736927714624,2.90881041,3237.5,3236.8,0.8066]
[1736927714826,0.7666,3237.8,3236.9,3.89592]
[1736927715021,2.90881041,3237.8,3237.1,0.8066]
[1736927715561,2.90881041,3237.8,3237.2,0.03088771]
[1736927715734,2.90881041,3237.8,3237.3,0.8066]
[1736927716323,2.90509055,3237.8,3237.3,0.8066]
[1736927716523,2.90509055,3237.8,3237.4,0.176]
[1736927716966,2.90881041,3238.1,3237.5,0.8066]
[1736927717265,0.02042133,3238.0,3237.5,0.8066]
[1736927717442,3.0,3238.0,3237.5,0.8066]
[1736927718459,3.02042133,3238.0,3237.5,0.8066]
[1736927718766,3.0,3238.0,3237.5,0.8066]
[1736927719066,2.90881041,3238.1,3237.5,0.83748527]
[1736927719457,2.90881041,3238.1,3237.5,0.8066]
[1736927720169,2.90881041,3238.1,3237.5,0.83748233]
[1736927720331,2.90881041,3238.1,3237.6,0.41023723]
[1736927724068,2.90881041,3238.1,3237.5,0.8066]
[1736927724269,0.55,3237.7,3237.0,0.82]
[1736927724572,2.90881041,3237.8,3237.5,0.82]
[1736927726237,3.57042133,3237.7,3237.1,0.82]
[1736927726455,3.57042133,3237.7,3237.1,0.996]
[1736927726456,3.45881041,3237.5,3237.1,0.996]
[1736927726676,3.45881041,3237.2,3237.1,0.176]
[1736927726989,3.47923174,3237.2,3237.1,0.176]
[1736927727551,3.47923174,3237.2,3236.8,0.82]
[1736927727552,3.47768763,3237.2,3236.8,0.82]
[1736927728684,3.4572663,3237.2,3236.8,0.82]
[1736927730654,2.90881041,3237.2,3236.8,0.82]
[1736927731855,0.57042133,3237.1,3236.8,0.82]
[1736927732671,0.57042133,3237.1,3236.7,0.176]
[1736927733470,0.55,3236.8,3236.3,0.8198]
[1736927733672,2.90881041,3236.6,3236.3,0.9968]
[1736927735502,3.47923174,3236.9,3236.3,0.9968]
[1736927737971,2.90881041,3236.6,3236.3,0.177]
[1736927739797,2.90881041,3236.9,3236.3,0.177]
[1736927740303,0.55,3236.8,3236.3,0.177]
[1736927740466,2.90881041,3236.9,3236.4,0.8308]
[1736927741099,2.92923174,3237.2,3236.5,3.08974]
[1736927741306,0.55,3237.1,3236.5,3.08974]
[1736927743106,0.55,3237.1,3236.4,0.8308]
[1736927743282,2.90881041,3236.9,3236.4,0.8308]
[1736927743476,0.02042133,3236.8,3236.4,0.8308]
[1736927745096,2.90881041,3236.9,3236.4,0.8308]
[1736927745395,0.02042133,3236.8,3236.4,0.8308]
[1736927746485,0.02042133,3236.8,3236.5,0.177]
[1736927746888,2.90881041,3236.9,3236.5,0.177]
[1736927747087,0.02042133,3236.8,3236.5,0.177]
[1736927750942,3.65989133,3236.8,3236.5,0.177]
[1736927751108,5.0683615,3236.8,3236.5,0.177]
[1736927751634,5.0683615,3236.8,3236.2,0.8117]
[1736927751838,4.41149133,3236.8,3236.3,0.177]
[1736927752343,4.41149133,3236.8,3236.2,0.8117]
[1736927752498,4.41149133,3236.8,3236.3,0.177]
[1736927753096,4.41149133,3236.8,3236.2,0.8117]
[1736927753297,4.41149133,3236.8,3236.2,0.9887]
[1736927753819,4.41149133,3236.8,3236.3,1.07065637]
[1736927754646,4.41149133,3236.8,3236.2,0.9887]
[1736927755098,1.32202133,3236.8,3236.2,0.9887]
[1736927755642,1.3016,3236.8,3236.2,0.9887]
[1736927755943,0.57042133,3236.7,3236.2,0.9887]
[1736927756144,2.90881041,3236.9,3236.2,1.21730105]
[1736927756290,2.90881041,3236.9,3236.3,0.03089837]
[1736927756512,2.90881041,3236.9,3236.3,3.12080837]
[1736927756712,2.90881041,3236.9,3236.4,0.8117]
[1736927756930,2.90881041,3236.9,3236.4,3.48807978]
[1736927757129,2.90881041,3236.9,3236.5,0.65779898]
[1736927759560,2.92923174,3237.2,3236.5,0.65779898]
[1736927759765,3.45881041,3237.2,3236.5,0.65779898]
[1736927759968,3.47923174,3237.2,3236.5,0.65779898]
[1736927760676,3.45881041,3237.2,3236.5,0.65779898]
[1736927760834,2.90881041,3237.2,3236.6,1.52951281]
[1736927761035,2.90881041,3237.2,3236.7,0.84259492]
[1736927761270,2.92923174,3237.5,3236.7,3.90126]
[1736927761567,2.92923174,3237.5,3236.8,3.08945]
[1736927761735,2.90881041,3237.5,3236.9,1.201815]
[1736927761940,2.90881041,3237.5,3236.9,3.90106]
[1736927762974,2.90881041,3237.8,3237.1,3.0891]
[1736927763273,3.08813,3238.2,3237.0,0.03088986]
[1736927763274,2.90881041,3238.1,3237.3,3.08899]
[1736927763421,2.92923174,3238.1,3237.3,3.08899]
[1736927763617,2.90881041,3237.8,3237.3,3.08899]
[1736927763841,2.90881041,3237.8,3237.4,0.406719]
[1736927764650,0.02042133,3238.1,3237.5,3.0887]
[1736927764849,0.7882,3238.5,3237.6,0.83208491]
[1736927765061,2.90881041,3238.2,3237.6,3.92077491]
[1736927765583,2.90881041,3238.2,3237.7,3.0886]
[1736927765742,2.90881041,3238.2,3237.8,0.39206849]
[1736927766859,2.90881041,3238.2,3237.6,0.8012]
[1736927767149,2.90881041,3238.2,3237.6,3.88989]
[1736927768086,2.90881041,3238.2,3237.6,0.8012]
[1736927768297,2.90881041,3238.2,3237.7,1.06955004]
[1736927769076,0.02042133,3238.1,3237.7,1.06955004]
[1736927769280,2.90881041,3237.9,3237.7,1.06955004]
[1736927769595,2.90881041,3237.9,3237.4,2.50522949]
[1736927769942,2.90881041,3237.6,3237.4,1.47431049]
[1736927770150,2.90881041,3237.6,3237.3,0.177]
[1736927775589,0.02042133,3237.8,3237.3,0.177]
[1736927775889,0.57042133,3237.8,3237.3,0.177]
[1736927776058,0.55,3237.8,3237.3,0.177]
[1736927776259,0.57042133,3237.8,3237.3,0.71346705]
[1736927776559,0.55,3237.8,3237.3,0.71346705]
[1736927779210,2.90881041,3237.6,3237.3,0.177]
[1736927782613,0.02042133,3237.8,3237.2,0.8012]
[1736927782764,3.45881041,3237.9,3237.4,0.177]
[1736927782964,2.90881041,3237.9,3237.4,0.177]
[1736927787503,2.90881041,3237.9,3237.5,0.8012]
[1736927790504,2.92923174,3238.2,3237.5,0.8012]
[1736927790700,2.92923174,3238.2,3237.5,1.207908]
[1736927798697,2.92923174,3238.2,3237.6,1.07015685]
[1736927799489,2.92923174,3238.2,3237.5,1.207908]
[1736927801127,2.92923174,3238.2,3237.6,2.67656658]
[1736927802029,2.92923174,3238.2,3237.7,1.07062663]
[1736927802736,2.92923174,3238.2,3237.5,2.50521849]
[1736927803040,2.92923174,3238.2,3237.6,0.77170642]
[1736927803394,1.37644973,3237.8,3237.6,3.45005928]
[1736927804119,1.37644973,3237.8,3237.7,2.67835286]
[1736927804317,0.02042133,3238.2,3237.7,2.67835286]
[1736927804535,1.37644973,3237.9,3237.7,2.67835286]
[1736927804697,1.37644973,3237.9,3237.8,0.47473698]
[1736927805641,1.37644973,3237.9,3237.8,3.98458984]
[1736927806239,1.37644973,3237.9,3237.8,5.28190033]
[1736927807521,0.8118,3238.5,3237.8,5.28190033]
[1736927807522,1.37644973,3238.1,3237.8,5.28190033]
[1736927807721,1.37644973,3238.1,3237.9,0.52819003]
[1736927808525,1.37644973,3238.1,3238.0,3.97538402]
[1736927811007,1.37644973,3238.1,3238.0,2.90404288]
[1736927812260,3.08776,3238.6,3238.0,2.90404288]
[1736927812545,1.37644973,3238.1,3238.0,1.29703116]
[1736927812712,1.37644973,3238.1,3238.0,1.80477355]
[1736927816936,1.37644973,3238.1,3238.0,1.98077355]
[1736927818012,1.37644973,3238.1,3238.0,4.6618313]
[1736927819233,1.37644973,3238.1,3238.0,3.36480014]
[1736927821214,6.39112946,3238.1,3238.0,2.68105775]
[1736927821740,5.01467973,3238.1,3238.0,2.68105775]
[1736927822058,5.01467973,3238.1,3237.8,1.94596574]
[1736927822059,5.03510106,3238.1,3237.8,1.94596574]
[1736927822261,1.37644973,3237.9,3237.8,1.94596574]
[1736927831563,2.17504973,3237.9,3237.8,1.94596574]
[1736927831765,2.19547106,3237.9,3237.8,1.94596574]
[1736927833359,0.81902133,3237.9,3237.8,1.94596574]
[1736927833985,0.7986,3237.9,3237.8,1.94596574]
[1736927836550,1.37644973,3238.0,3237.8,1.94596574]
[1736927837151,1.37644973,3237.9,3237.8,3.17032441]
[1736927838073,1.37644973,3237.9,3237.8,5.20501991]
[1736927839974,1.37644973,3237.9,3237.8,3.90719862]
[1736927840551,1.37644973,3237.9,3237.8,7.99942544]
[1736927841261,1.37644973,3237.9,3237.8,3.90719862]
[1736927841850,1.37644973,3237.9,3237.8,5.85316436]
[1736927842980,1.37644973,3237.9,3237.8,6.05330142]
[1736927843150,3.91501,3239.5,3238.4,3.08792]
[1736927843350,0.8281,3239.5,3238.6,0.7527]
[1736927843552,1.37644973,3239.4,3238.8,3.08747]
[1736927843754,1.37644973,3239.4,3238.9,0.03087106]
[1736927844109,0.8281,3240.6,3238.9,0.03087106]
[1736927844404,1.37644973,3239.7,3239.1,3.08727]
[1736927844541,1.37644973,3239.7,3239.2,0.03086761]
[1736927844739,1.37644973,3239.7,3239.5,0.7527]
[1736927844976,3.8281,3240.4,3239.6,0.176]
[1736927844977,1.37644973,3239.8,3239.6,0.176]
[1736927845347,2.90447831,3239.9,3239.6,0.176]
[1736927845954,0.84852133,3239.8,3239.2,2.04827827]
[1736927846159,2.90447831,3239.6,3239.3,0.176]
[1736927846358,0.02042133,3239.5,3239.3,0.176]
[1736927847393,0.02042133,3239.5,3238.9,0.7527]
[1736927847394,0.57042133,3239.5,3239.2,0.176]
[1736927847688,2.90447831,3239.2,3238.6,5.13598827]
[1736927847843,2.92489964,3239.2,3238.7,0.176]
[1736927852051,2.90447831,3239.2,3238.7,0.176]
[1736927852254,2.90447831,3239.5,3238.8,0.03087355]
[1736927852451,2.90447831,3239.5,3239.0,0.7527]
[1736927852859,2.90447831,3239.8,3239.1,0.03087003]
[1736927853085,2.90447831,3239.8,3239.2,3.08718]
[1736927855587,2.90447831,3239.8,3239.3,3.08707]
[1736927856186,2.90447831,3239.8,3239.2,0.7761]
[1736927856484,2.90447831,3239.8,3239.2,3.86324]
[1736927856689,2.90447831,3239.8,3239.3,0.38941074]
[1736927856846,2.90447831,3239.8,3239.2,3.86324]
[1736927857187,2.90447831,3239.8,3239.2,0.7761]
[1736927857965,2.90076029,3239.8,3239.2,0.7761]
[1736927861577,0.02042133,3239.7,3239.2,0.7761]
[1736927861892,2.90076029,3239.8,3239.2,0.7761]
[1736927862796,0.02042133,3239.7,3239.2,0.7761]
[1736927863294,2.90076029,3239.8,3239.2,0.7761]
[1736927863682,0.02042133,3239.7,3239.2,0.7761]
[1736927864969,2.92118162,3239.8,3239.2,0.7761]
[1736927865175,2.92118162,3239.8,3239.3,0.176]
[1736927865176,6.00785162,3239.8,3239.3,0.176]
[1736927868170,2.90447831,3239.5,3238.8,0.7555]
[1736927868375,2.90447831,3239.1,3238.9,0.176]
[1736927868587,2.92489964,3239.1,3238.9,0.176]
[1736927869402,2.92489964,3239.1,3238.8,0.176]
[1736927869780,2.90447831,3239.1,3238.8,0.176]
[1736927877913,0.79572133,3239.2,3238.8,0.176]
[1736927878215,0.7753,3239.2,3238.8,0.176]
[1736927880690,2.90447831,3239.4,3238.8,0.176]
[1736927881017,0.7753,3239.6,3238.9,0.7555]
[1736927881218,0.02042133,3239.5,3238.9,1.157414]
[1736927881577,0.79572133,3239.6,3238.9,1.157414]
[1736927886093,0.79572133,3239.6,3238.7,1.29557827]
[1736927886094,3.67327831,3239.1,3238.7,1.29557827]
[1736927886405,3.67327831,3239.1,3238.8,1.29557827]
[1736927886406,0.02042133,3239.0,3238.8,1.29557827]
[1736927886723,3.67327831,3239.1,3238.8,1.29557827]
[1736927887310,3.67327831,3239.1,3238.7,4.25499959]
[1736927887311,0.02042133,3239.0,3238.7,0.176]
[1736927887507,2.90447831,3238.8,3238.6,0.176]
[1736927887708,0.02042133,3238.7,3238.4,1.29557827]
[1736927887934,0.02042133,3238.7,3238.6,0.176]
[1736927888342,2.90447831,3238.8,3238.6,0.176]
[1736927888515,2.90447831,3238.8,3238.5,0.176]
[1736927891824,0.02042133,3238.7,3238.5,0.176]
[1736927892337,2.90447831,3238.8,3238.5,0.176]
[1736927892720,0.02042133,3238.7,3238.5,0.176]
[1736927892922,2.90447831,3238.8,3238.5,0.176]
[1736927896961,0.02042133,3238.7,3238.5,0.176]
[1736927897159,0.57042133,3238.7,3238.5,0.176]
[1736927897334,0.7688,3238.6,3238.4,0.176]
[1736927897541,0.02042133,3238.5,3238.4,0.176]
[1736927897861,2.92489964,3238.5,3238.4,0.176]
[1736927901863,0.02042133,3238.5,3238.4,0.176]
[1736927902170,0.7688,3238.6,3238.4,0.176]
[1736927903056,0.55,3238.7,3238.4,0.176]
[1736927903661,2.90447831,3238.8,3238.4,0.176]
[1736927903855,3.69369964,3239.1,3238.4,0.176]
[1736927904850,3.69369964,3239.1,3238.5,1.06994256]
[1736927905650,0.55,3239.0,3238.5,1.06994256]
[1736927905860,0.02042133,3238.9,3238.4,0.176]
[1736927906193,2.90447831,3238.8,3238.4,0.176]
[1736927906472,0.02042133,3238.7,3238.4,0.176]
[1736927907578,2.90447831,3238.8,3238.4,0.176]
[1736927909182,0.02042133,3238.7,3238.4,0.176]
[1736927910902,2.90447831,3238.8,3238.4,0.176]
[1736927911604,0.02042133,3238.7,3238.4,0.176]
[1736927912410,7.40684,3238.3,3238.2,1.29557827]
[1736927913170,10.31131831,3238.3,3238.2,1.29557827]
[1736927913370,3.08855,3237.8,3237.6,1.29557827]
[1736927913685,4.27279964,3237.7,3237.6,1.29557827]
[1736927914091,4.27279964,3237.7,3237.2,1.29557827]
[1736927914291,4.27279964,3237.7,3237.2,1.47157827]
[1736927914686,0.55,3237.6,3237.2,1.47157827]
[1736927914892,2.90447831,3237.4,3237.2,1.29557827]
[1736927915200,2.90447831,3237.4,3237.1,2.11936741]
[1736927915201,3.10945133,3237.3,3237.1,1.29557827]
[1736927916269,3.10945133,3237.3,3236.9,0.176]
[1736927916782,2.90447831,3237.1,3236.7,0.176]
[1736927916980,0.02042133,3237.0,3236.7,0.176]
[1736927917507,0.02042133,3237.0,3236.4,0.7985]
[1736927917678,3.65970133,3237.0,3236.5,0.176]
[1736927918076,0.57042133,3237.0,3236.5,0.176]
[1736927918292,0.55,3237.0,3236.5,0.176]
[1736927920413,0.02042133,3236.9,3236.5,0.176]
[1736927920599,0.55,3237.0,3236.5,0.176]
[1736927920966,0.55,3237.0,3236.4,0.7985]
[1736927921171,0.55,3237.0,3236.5,0.176]
[1736927922380,2.90447831,3236.8,3236.1,0.176]
[1736927922580,0.02042133,3236.7,3236.1,0.176]
[1736927924199,2.90447831,3236.8,3236.1,0.176]
[1736927924708,0.02042133,3236.7,3236.0,1.42235536]
[1736927924874,0.02042133,3236.7,3236.2,0.176]
[1736927925929,0.02042133,3236.7,3236.2,0.33583554]
[1736927926121,0.55,3237.0,3236.3,0.7985]
[1736927926835,0.02042133,3236.9,3236.3,0.7985]
[1736927928931,0.55,3237.0,3236.3,0.7985]
[1736927931014,0.02042133,3236.9,3236.3,0.7985]
[1736927931413,0.8242,3236.8,3236.3,0.7985]
[1736927931614,0.02042133,3236.7,3236.3,0.7985]
[1736927933207,0.8242,3236.8,3236.3,0.7985]
[1736927933621,0.02042133,3236.7,3236.3,0.7985]
[1736927936822,0.8242,3236.8,3236.3,0.7985]
[1736927937021,0.84462133,3236.8,3236.3,0.7985]
[1736927938149,0.8242,3236.8,3236.3,0.7985]
[1736927939346,0.02042133,3236.7,3236.3,0.7985]
[1736927939547,0.8242,3236.8,3236.3,0.7985]
[1736927940324,1.3204,3237.0,3236.3,0.7985]
[1736927940562,3.7704,3237.3,3236.4,0.03089749]
[1736927940874,3.7704,3237.3,3236.5,3.08974]
[1736927940875,0.02042133,3237.2,3236.5,3.08974]
[1736927941840,0.02042133,3237.2,3236.3,0.7985]
[1736927942037,0.57042133,3237.2,3236.3,3.88843]
[1736927943184,2.90447831,3237.1,3236.3,3.88843]
[1736927943343,0.02042133,3237.0,3236.3,3.88843]
[1736927943542,0.02042133,3237.0,3236.3,4.294873]
[1736927944978,0.02042133,3237.0,3236.3,1.204943]
[1736927945186,0.8326,3236.9,3236.2,0.176]
[1736927945495,0.02042133,3236.8,3236.2,0.176]
[1736927946892,0.02042133,3236.8,3236.3,0.176]
[1736927951058,0.8326,3236.9,3236.3,0.176]
[1736927952675,0.8326,3237.2,3236.5,0.8283]
[1736927952875,0.8326,3237.2,3236.5,1.24081373]
[1736927953076,0.55,3237.1,3236.5,1.24081373]
[1736927956600,0.02042133,3237.0,3236.5,1.24081373]
[1736927956767,0.55,3237.1,3236.5,1.24081373]
[1736927957170,0.02042133,3237.0,3236.5,1.24081373]
[1736927958070,0.55,3237.1,3236.5,1.24081373]
[1736927958267,0.55,3237.1,3236.5,0.8283]
[1736927958467,0.55,3237.1,3236.6,2.680271]
[1736927959163,0.02042133,3237.0,3236.7,1.0721084]
[1736927960022,0.02042133,3237.0,3236.5,2.12387827]
[1736927960422,0.02042133,3237.0,3236.8,1.0732134]
[1736927961423,0.02042133,3237.0,3236.6,1.47157827]
[1736927962315,0.02042133,3237.0,3236.7,3.9804096]
[1736927963823,0.02042133,3237.0,3236.8,2.68483133]
[1736927964623,0.02042133,3237.0,3236.9,1.07393253]
[1736927966421,0.55,3237.1,3236.9,1.07393253]
[1736927967128,0.55,3237.1,3236.7,1.29557827]
[1736927967328,1.37730583,3236.9,3236.7,1.29557827]
[1736927967541,0.8326,3237.2,3236.7,1.71990284]
[1736927967716,0.8326,3237.9,3237.0,0.8283]
[1736927967894,1.37730583,3237.8,3237.0,0.8283]
[1736927968229,0.8326,3237.9,3237.3,1.29557827]
[1736927968230,1.37730583,3237.6,3237.3,1.29557827]
[1736927968725,1.37730583,3237.7,3237.4,0.8283]
[1736927968993,1.37730583,3237.9,3237.5,0.176]
[1736927969292,0.8326,3238.1,3237.5,0.176]
[1736927969293,0.85302133,3238.1,3237.5,0.176]
[1736927969501,1.37730583,3237.9,3237.5,0.176]
[1736927969947,1.37730583,3237.9,3237.6,2.68506962]
[1736927970804,1.37730583,3237.9,3237.7,3.98064789]
[1736927971332,0.8326,3238.1,3237.7,3.98064789]
[1736927971498,0.8326,3238.1,3237.5,1.47157827]
[1736927971692,0.8326,3238.1,3237.5,2.28551571]
[1736927972218,0.02042133,3238.2,3237.6,2.67897803]
[1736927972529,0.55,3238.3,3237.6,2.70986173]
[1736927972708,0.02042133,3238.2,3237.6,2.67897803]
[1736927973116,0.02042133,3238.2,3237.7,1.07159121]
[1736927973316,0.55,3238.3,3237.7,1.07159121]
[1736927974104,0.55,3238.3,3237.5,2.28551571]
[1736927974105,0.55,3238.3,3237.5,0.98993744]
[1736927975128,0.55,3238.3,3237.6,2.67689162]
[1736927975332,0.02042133,3238.2,3237.6,2.67689162]
[1736927975537,0.02042133,3238.2,3237.6,1.07989162]
[1736927975907,0.02042133,3238.2,3237.5,0.176]
[1736927976834,0.55,3238.3,3237.5,0.20688372]
[1736927977837,0.02042133,3238.2,3237.5,0.176]
[1736927978131,0.55,3238.3,3237.6,0.03088373]
[1736927979136,0.55,3238.3,3237.7,0.7836]
[1736927982253,3.92054,3238.4,3237.7,0.7836]
[1736927983024,0.02042133,3238.3,3237.7,0.7836]
[1736927983963,3.92054,3238.4,3237.7,0.7836]
[1736927984165,4.60336564,3238.4,3237.7,0.7836]
[1736927985311,0.02042133,3238.3,3237.7,0.7836]
[1736927985751,4.60336564,3238.4,3237.7,0.7836]
[1736927986622,5.99584642,3238.2,3237.7,0.7836]
[1736927988170,2.90771642,3238.2,3237.7,0.7836]
[1736927989949,4.60338564,3238.4,3237.7,0.7836]
[1736927990314,0.02042133,3238.3,3237.7,0.7836]
[1736927991215,0.77357367,3238.3,3237.7,0.7836]
[1736927991416,1.37628916,3238.1,3237.7,0.7836]
[1736927992522,1.37628916,3238.1,3237.5,1.0]
[1736927992716,1.37628916,3237.9,3237.5,1.0]
[1736927995524,1.37628916,3237.6,3237.1,4.91311252]
[1736927995731,1.37628916,3237.6,3237.2,0.176]
[1736927996646,0.55,3237.5,3237.2,0.176]
[1736928000642,0.55,3237.7,3237.2,0.176]
[1736928000750,0.54628244,3237.7,3237.3,0.626516]
[1736928000956,2.20638916,3238.0,3237.4,0.824]
[1736928001141,0.02042133,3237.9,3237.4,0.824]
[1736928001935,1.37628916,3238.0,3237.4,0.824]
[1736928002150,0.8301,3238.2,3237.4,0.824]
[1736928002151,1.37628916,3237.8,3237.4,0.824]
[1736928003362,0.55,3237.7,3237.4,0.824]
[1736928005441,0.55,3237.9,3237.4,0.824]
[1736928005647,1.37628916,3238.3,3237.5,0.7528]
[1736928005874,0.8295,3238.6,3237.5,0.78368578]
[1736928006178,1.37628916,3238.4,3237.7,3.08858]
[1736928006371,1.37628916,3238.4,3237.7,0.0308823]
[1736928006672,1.37628916,3238.4,3237.8,3.0885]
[1736928006846,0.55,3238.3,3237.6,2.70585662]
[1736928007196,0.55,3238.3,3237.7,0.47519469]
[1736928007347,0.55,3238.3,3237.5,0.78368219]
[1736928007672,1.37628916,3238.2,3237.5,0.78368219]
[1736928007834,0.55,3238.1,3237.8,2.67529495]
[1736928008271,1.37628916,3238.0,3237.8,2.67529495]
[1736928008556,0.55,3238.1,3237.8,2.67529495]
[1736928008975,0.55,3238.1,3237.6,3.08862]
[1736928009278,0.55,3238.1,3237.6,4.01032845]
[1736928009958,0.55,3238.1,3237.7,2.67649737]
[1736928010496,0.55,3237.9,3237.7,2.67649737]
[1736928010855,1.92628916,3237.9,3237.7,2.67649737]
[1736928011051,0.8295,3238.1,3237.8,2.67649737]
[1736928011052,2.20578916,3238.1,3237.8,2.67649737]
[1736928011267,1.37628916,3238.2,3237.8,3.42929737]
[1736928011680,0.55,3238.1,3237.8,2.67649737]
[1736928012066,0.55,3238.1,3237.9,1.07059895]
[1736928012474,1.37628916,3238.2,3237.9,1.07059895]
[1736928012643,0.02042133,3238.1,3237.9,1.07059895]
[1736928012848,2.20578916,3238.0,3237.8,1.29417141]
[1736928013483,2.20578916,3238.0,3237.6,1.94125711]
[1736928013484,2.20578916,3238.0,3237.9,1.07223351]
[1736928013687,0.8295,3238.0,3237.9,1.07223351]
[1736928013872,3.91726,3238.6,3237.9,1.07223351]
[1736928014185,1.37628916,3238.2,3238.0,0.176]
[1736928015249,1.37628916,3238.2,3238.1,3.97591857]
[1736928015560,1.37628916,3238.2,3238.1,4.01742631]
[1736928015759,1.37628916,3238.2,3238.1,2.7232549]
[1736928016305,0.8295,3238.6,3238.1,2.7232549]
[1736928016455,1.37628916,3238.4,3238.1,2.7232549]
[1736928016655,1.37628916,3238.4,3238.1,4.01742631]
[1736928017200,1.37628916,3238.4,3238.2,3.97591857]
[1736928017359,0.02042133,3238.5,3238.2,3.97591857]
[1736928017554,1.37628916,3238.4,3238.3,0.04146879]
[1736928017884,1.37628916,3238.4,3238.2,3.97591857]
[1736928018059,1.37628916,3238.4,3238.3,2.68174716]
[1736928018264,1.37628916,3238.4,3238.3,2.72321595]
[1736928019090,5.47917154,3238.4,3238.3,2.72321595]
[1736928019452,5.47917154,3238.4,3238.3,0.04146879]
[1736928019653,2.37081021,3238.4,3238.3,0.04146879]
[1736928019882,2.37081021,3238.4,3237.9,1.47017141]
[1736928020055,4.10288238,3238.4,3238.3,0.03866627]
[1736928020388,4.10288238,3238.4,3237.9,0.176]
[1736928020389,3.08804,3238.3,3237.9,0.176]
[1736928020578,0.43071957,3238.2,3237.9,1.47017141]
[1736928020766,0.43071957,3238.2,3238.0,0.0388035]
[1736928021397,0.43071957,3238.2,3238.0,1.11179226]
[1736928022054,0.43071957,3238.2,3238.0,0.0388035]
[1736928023368,1.37628916,3238.1,3238.0,0.0388035]
[1736928024094,1.37628916,3238.1,3238.0,2.7212494]
[1736928025293,1.55699003,3238.1,3238.0,2.72023439]
[1736928026599,3.70517919,3238.1,3238.0,2.72023439]
[1736928027174,5.41712003,3238.1,3238.0,2.72023439]
[1736928027380,6.94894926,3238.1,3238.0,0.03778849]
[1736928027896,6.94894926,3238.1,3237.6,0.176]
[1736928028192,6.94894926,3238.1,3237.6,1.47017141]
[1736928028374,6.94894926,3238.1,3237.7,0.03742173]
[1736928029176,6.94894926,3238.1,3237.8,1.073005]
[1736928029575,0.02042133,3238.0,3237.9,0.03757185]
[1736928029771,0.71735839,3238.0,3237.9,0.03757185]
[1736928030263,3.80570839,3238.0,3237.9,0.03656115]
[1736928030474,7.57760839,3238.0,3237.9,0.03656115]
[1736928030692,0.7719,3237.7,3237.5,1.29417141]
[1736928030886,2.92853972,3237.6,3237.5,1.29417141]
[1736928031101,3.60743969,3237.6,3237.5,1.29417141]
[1736928031262,3.60743969,3237.6,3237.3,0.176]
[1736928032277,3.60743969,3237.6,3237.4,2.68215112]
[1736928032887,3.60743969,3237.6,3237.2,1.29417141]
[1736928033092,3.60743969,3237.6,3237.3,0.176]
[1736928033286,0.43793397,3237.5,3237.3,0.176]
[1736928033489,0.43793397,3237.5,3236.0,2.90811839]
[1736928033694,3.60743969,3237.6,3237.4,0.03661717]
[1736928033892,3.60743969,3237.6,3237.3,0.176]
[1736928034703,3.60743969,3237.6,3237.4,0.03539688]
[1736928034901,3.60743969,3237.6,3237.3,0.176]
[1736928035203,3.60743969,3237.6,3237.4,0.03539688]
[1736928035407,0.43793397,3237.5,3237.4,0.03539688]
[1736928035611,0.43793397,3237.5,3237.3,0.176]
[1736928035811,0.83852133,3237.4,3235.4,5.99890839]
[1736928036011,0.8181,3237.0,3235.9,0.176]
[1736928036174,2.90811839,3236.8,3235.9,0.4163]
[1736928036376,0.02042133,3236.7,3235.9,0.4163]
[1736928036576,0.02042133,3236.7,3236.0,0.825]
[1736928036793,2.90811839,3236.5,3236.0,0.825]
[1736928037113,0.83852133,3236.4,3236.1,0.176]
[1736928037592,0.83852133,3236.4,3236.0,2.85585958]
[1736928037797,1.5221603,3236.4,3236.0,2.67985958]
[1736928038129,5.99817839,3236.2,3236.0,2.67985958]
[1736928038320,0.02042133,3236.1,3235.6,0.176]
[1736928038908,0.02042133,3236.1,3235.5,0.825]
[1736928039206,0.02042133,3236.1,3235.7,0.176]
[1736928041125,5.99817839,3236.2,3235.8,0.03539688]
[1736928041322,5.90537839,3236.2,3235.8,0.176]
[1736928041485,5.90537839,3236.2,3235.9,0.03539688]
[1736928041811,5.90537839,3236.2,3235.8,0.176]
[1736928042216,5.90537839,3236.2,3235.9,0.03539688]
[1736928042586,3.0,3236.1,3235.8,0.176]
[1736928042916,2.90811839,3235.9,3235.5,0.176]
[1736928043217,2.88771839,3235.9,3235.5,0.176]
[1736928043579,5.97806839,3235.9,3235.5,0.176]
[1736928044093,3.8181,3235.5,3234.7,0.825]
[1736928044292,3.8181,3235.5,3235.1,0.176]
[1736928044901,3.8181,3235.5,3235.2,0.03703133]
[1736928046395,3.8181,3235.5,3235.1,0.176]
[1736928046781,3.8181,3235.5,3235.2,0.03720377]
[1736928048505,3.09087,3235.4,3235.2,0.03720377]
[1736928048689,3.09087,3235.4,3235.1,0.176]
[1736928048881,3.09087,3235.4,3235.2,0.03626299]
[1736928049081,2.90811839,3235.3,3234.8,0.176]
[1736928049300,2.90811839,3235.3,3234.9,0.03508045]
[1736928050818,2.90811839,3235.3,3234.9,0.21108045]
[1736928051226,4.79978384,3235.5,3234.9,0.21108045]